Cogmind - Beta 10.2 @@@ ROGUE MODE // 2021.07.12 @ 19:35:20 Player: Sanctumkeeper Result: Destroyed by S-10 Pest with Light Assault Rifle Performance ------------- Evolutions (0) 0 Regions Visited (1) 200 Robots Destroyed (8) 40 Value Destroyed (157) 157 Prototype IDs (0) 0 Alien Tech Used (0) 0 Bonus (0) 0 TOTAL SCORE: 397 Bonus ------- None Cogmind --------- Core Integrity 0/250 Matter 261/300 Energy 100/100 System Corruption 0% Temperature Cool (0) Movement Treading (200) Ox2 Location -10/Materials Parts ------- > --- POWER (1) -------- (None) > --- PROPULSION (2) --- Light Treads Compact Wheel > --- UTILITY (2) ------ Large Storage Unit High-capacity Storage Unit > --- WEAPON (2) ------- Light Assault Rifle > --- INVENTORY (18) --- Light Treads Wheel Wheel Medium Storage Unit Large Storage Unit Medium Matter Pod (100) Medium Matter Pod (100) Peak State ------------ > --- POWER ------------ Ion Engine > --- PROPULSION ------- Light Treads Compact Wheel > --- UTILITY ---------- Large Storage Unit High-capacity Storage Unit > --- WEAPON ----------- Light Assault Rifle Light Assault Rifle > --- INVENTORY -------- Light Treads Light Treads Wheel Wheel Medium Storage Unit Large Storage Unit Small Matter Pod Small Matter Pod Medium Laser Light Assault Rifle [Rating: 8] Favorites ----------- Power Ion Engine Engine Ion Engine Propulsion Light Treads Treads Light Treads Wheel Compact Wheel Utility High-capacity Storage Unit Storage High-capacity Storage Unit Weapon Light Assault Rifle Energy Gun Medium Laser Ballistic Gun Light Assault Rifle Build | -11 -10 ------- Run | Scr Mat Slots Evolved . | . . Power . | . . Propulsion . | . . Utility . | . . Weapon . | . . Parts Attached 17 | 6 11 Power 3 | 1 2 Engine 3 | 1 2 Core . | . . Reactor . | . . Propulsion 4 | 2 2 Treads 2 | 1 1 Leg . | . . Wheel 2 | 1 1 Hover . | . . Flight . | . . Utility 4 | 1 3 Device . | . . Storage 4 | 1 3 Processor . | . . Hackware . | . . Protection . | . . Artifact . | . . Weapon 6 | 2 4 Energy Gun 2 | . 2 Energy Cannon . | . . Ballistic Gun 4 | 2 2 Ballistic Cannon . | . . Launcher . | . . Special Weapon . | . . Impact Weapon . | . . Slashing Weapon . | . . Piercing Weapon . | . . Special Melee Weapon . | . . Unidentified Prototypes . | . . Parts Lost 8 | . 8 Power 2 | . 2 Propulsion 1 | . 1 Utility . | . . Weapon 5 | . 5 Highest Loss Streak 7 | . 7 Average Slot Usage (%) 93 | . 93 Engine 13 | . 13 Treads 14 | . 14 Wheel 14 | . 14 Storage 23 | . 23 Ballistic Gun 27 | . 27 Naked Turns . | . . Heaviest Build 55 | 9 55 Greatest Support 20 | 20 20 Greatest Overweight (x) 3 | 1 3 Average Overweight (x) 1 | . 1 Largest Inventory Capacity 18 | 6 18 Average Capacity 12 | 5 12 Most Carried 12 | 5 12 Average Carried 6 | 2 6 Final Capacity 18 | 6 18 Final Carried 7 | 4 7 Class Distribution -------------------- 100% | Mutant Dominant Class ---------------- Mutant | -10/Materials Resources | -11 -10 ----------- Run | Scr Mat Matter Collected 667 | 210 457 Remotely . | . . Salvage Created 212 | . 212 Parts 10 | . 10 Haulers Intercepted 1 | . 1 Recyclers Shooed . | . . Parts Field Recycled . | . . Retrieved Matter . | . . Parts Self-Destructed . | . . Prevented . | . . Kills | -11 -10 ------- Run | Scr Mat Combat Hostiles Destroyed 7 | . 7 Guns 7 | . 7 Classes Destroyed 3 | . 3 Hauler 1 | . 1 Swarmer 4 | . 4 Grunt 3 | . 3 Best Kill Streak 4 | . 4 Combat Bots Only 4 | . 4 Max Kills in Single Turn 1 | . 1 Gunslinging . | . . Exploded . | . . Melee . | . . Uniques/NPCs Destroyed . | . . Combat | -11 -10 -------- Run | Scr Mat Damage Taken 1071 | . 1071 Core 257 | . 257 Absorbed by Shields . | . . Core Remaining (%) 100 | 100 . Volleys Fired 43 | . 43 Largest 2 | . 2 Hottest 70 | . 70 Shots Fired 83 | . 83 Gun 83 | . 83 Cannon . | . . Launcher . | . . Special . | . . Kinetic 73 | . 73 Thermal 10 | . 10 Explosive . | . . Electromagnetic . | . . Robot Hit Streak 16 | . 16 Robot Miss Streak 3 | . 3 Penetration Max . | . . Secondary Targets 2 | . 2 Max Gunslinging Chain 1 | . 1 Shots Hit Robots 54 | . 54 Core Hits 17 | . 17 Critical Hits . | . . Critical Kills . | . . Critical Parts Destroyed . | . . Melee Attacks . | . . Impact . | . . Slashing . | . . Piercing . | . . Sneak Attacks . | . . Combat Hostiles . | . . Follow-up Attacks . | . . Damage Inflicted 449 | . 449 Guns 449 | . 449 Cannons . | . . Explosions . | . . Melee . | . . Ramming . | . . Kinetic 351 | . 351 Thermal 98 | . 98 Explosive . | . . Electromagnetic . | . . Impact . | . . Slashing . | . . Piercing . | . . Highest Corruption . | . . Average Corruption . | . . Corruption Purged . | . . Overload Shots . | . . Overflow Damage . | . . Projectiles . | . . Explosions . | . . Melee . | . . Knockbacks . | . . Impact . | . . Kinetic . | . . Secondary . | . . Self-Inflicted Damage . | . . Shots . | . . Rammed . | . . Targets Rammed . | . . Kicked . | . . Crushed . | . . Highest Temperature 75 | . 75 Average Temperature 30 | . 30 Received Heat Transfer 258 | . 258 Siege Activations . | . . Robots Corrupted . | . . Combat Hostiles . | . . Parts Fried . | . . Impact Corruptions . | . . Robots Melted . | . . Combat Hostiles . | . . Parts Melted 3 | . 3 Heat Transferred 296 | . 296 Parts Sabotaged . | . . Parts Stolen . | . . Parts Stripped . | . . Power Chain Reactions . | . . Missiles Intercepted . | . . Alert | -11 -10 ------- Run | Scr Mat Peak Influence 166 | . 166 Initial . | . . Average 58 | . 65 Maximum Alert Level . | . . Low Security (%) 100 | 100 100 Level 1 . | . . Level 2 . | . . Level 3 . | . . Level 4 . | . . Level 5 . | . . High Security . | . . Max Security . | . . Squads Dispatched 1 | . 1 Investigation . | . . Extermination . | . . Reinforcement 1 | . 1 Assault . | . . Garrison . | . . Intercept . | . . Construction Impeded . | . . Haulers Reinforced . | . . Stealth | -11 -10 --------- Run | Scr Mat Distress Signals . | . . Communications Jammed . | . . Distress Signals . | . . Times Spotted 16 | . 16 Peak Tracking Total 7 | . 7 Tactical Retreats 1 | . 1 Traps | -11 -10 ------- Run | Scr Mat Traps Triggered . | . . Indirectly . | . . Trap Hack Attempts . | . . Triggered . | . . Disarmed . | . . Reprogrammed . | . . Reused . | . . Traps Extracted . | . . Installed . | . . Triggered . | . . Machines | -11 -10 ---------- Run | Scr Mat Machines Disabled . | . . Max in Single Turn . | . . Machines Sabotaged . | . . Garrisons Compromised . | . . Overloaded Fab Kills . | . . Fab Network Shutdowns . | . . Hacking | -11 -10 --------- Run | Scr Mat Machines Accessed 3 | . 3 Terminals 3 | . 3 Fabricators . | . . Repair Stations . | . . Recycling Units . | . . Scanalyzers . | . . Garrison Access . | . . Total Hacks 13 | . 13 Successful 6 | . 6 Failed 6 | . 6 Catastrophic . | . . Database Lockouts 1 | . 1 Manual 11 | . 11 Terminals 13 | . 13 Fabricators . | . . Repair Stations . | . . Recycling Units . | . . Scanalyzers . | . . Garrison Access . | . . Terminal Hacks 2 | . 2 Robot Analysis 1 | . 1 Locate Traps 1 | . 1 Fabricator Hacks . | . . Repair Station Hacks . | . . Recycling Unit Hacks . | . . Scanalyzer . | . . Garrison Access Hacks . | . . Unauthorized Hacks 4 | . 4 Terminals 4 | . 4 Botnet 3 | . 3 Operators 1 | . 1 Fabricators . | . . Repair Stations . | . . Recycling Units . | . . Scanalyzers . | . . Garrison Access . | . . Data Cores Recovered . | . . Used . | . . Hacking Detections 3 | . 3 Full Trace Events . | . . Feedback Events . | . . Feedback Blocked . | . . Robot Schematics Acquired . | . . Robots Built . | . . Matter . | . . Time . | . . Total Robot Build Rating . | . . Part Schematics Acquired . | . . Parts Built . | . . Matter . | . . Time . | . . Total Part Build Rating . | . . Parts Repaired . | . . Time . | . . Parts Recycled . | . . Recycled Matter . | . . Retrieved Matter . | . . Retrieved Components . | . . Parts Scanalyzed . | . . Part Schematics Acquired . | . . Parts Damaged . | . . Bothacking | -11 -10 ------------ Run | Scr Mat Used RIF Installer . | . . Robots Hacked . | . . Non-combat . | . . Combat . | . . Robot Hacks Applied . | . . Relay Couplers Released . | . . Robots Rewired . | . . Allies Hacked . | . . Hacks Repelled . | . . Allies | -11 -10 -------- Run | Scr Mat Total Allies . | . . Largest Group . | . . Highest-Rated Group . | . . Highest-Rated Ally . | . . Total Orders . | . . Ally Attacks . | . . Total Damage . | . . Kills . | . . Allies Corrupted . | . . Allies Melted . | . . Intel | -11 -10 ------- Run | Scr Mat Robot Analysis Total 1 | . 1 Derelict Logs Recovered . | . . Drone Launches . | . . Drone Recoveries . | . . Exploration | -11 -10 ------------- Run | Scr Mat Turns Passed 631 | 70 561 Spaces Moved 342 | 40 302 Core 4 | 4 . Treads 133 | 33 100 Legs . | . . Wheels 205 | 3 202 Hover . | . . Flight . | . . Fastest Speed 50 | 50 120 Average Speed 138 | 144 137 Slowest Speed 200 | 160 200 Overloaded Moves . | . . Propulsion Burnouts . | . . Robots Hopped . | . . Cave-ins Triggered . | . . Exploration Rate (%) 22 | 4 41 Regions Visited 1 Branch Regions . Pre-discovered Areas . | . . Known Exits Taken . | . . Unknown Exits Taken 1 | 1 . Scrap Searched . | . . Spaces Dug . | . . Terrain Destroyed . | . . Melee . | . . Projectile . | . . AOE . | . . Terrain Rammed . | . . Walls Destroyed . | . . Machines Disabled . | . . Actions | -11 -10 --------- Run | Scr Mat Total 427 | 50 377 Wait 9 | . 9 Move 341 | 39 302 Hop . | . . Pick Up 13 | 5 8 Fast Attach 7 | 5 2 Attach 6 | 1 5 Detach . | . . Swap 4 | . 4 Drop 4 | . 4 Fire 43 | . 43 Melee . | . . Ram . | . . Kick . | . . Crush . | . . Escape Stasis . | . . Rewire . | . . Trap . | . . Miscellaneous . | . . Route ------- -11/Scrapyard -10/Materials (discovered 2 exits: [*Mat] / [*Min]) History --------- Turn | Location | Event 10 | -11/Scrapyard | Discovered new exit (range 16) 71 | -11/Scrapyard | Entered Materials 116 | -10/Materials | Central database locked down 226 | -10/Materials | Core integrity fell below 50% 333 | -10/Materials | Build established: Mutant 421 | -10/Materials | Discovered new exit (range 7) 561 | -10/Materials | Discovered new exit (range 10) 610 | -10/Materials | Core integrity fell below 20% 632 | -10/Materials | Destroyed by S-10 Pest with Light Assault Rifle Last Messages --------------- 00538_ Acquired Med. Laser. 00543_ Acquired 112 matter. 00547_ R-06 Scavenger collects Sml. Matter Pod. 00561_ EXIT=FOUND 00580_ Lgt. Treads destroyed. 00590_ Ion Engine destroyed. 00592_ Lgt. Assault Rifle destroyed. 00596_ S-10 Pest destroyed. 00603_ Switching to secondary target: G-47 Trooper. 00610_ Med. Laser destroyed. 00610_ Lgt. Assault Rifle destroyed. 00614_ Acquired Lgt. Assault Rifle. 00623_ R-06 Scavenger collects Flight Unit. 00624_ G-47 Trooper overheating. 00626_ R-06 Scavenger collects Flight Unit. 00627_ Med. Laser destroyed. 00629_ G-47 Trooper heat spikes uncontrollably. 00629_ Aluminum Leg melted. 00629_ Lgt. Nuclear Core melted. 00629_ G-47 Trooper destroyed. Map ----- +----------------------------------------------------+ | | | | | ????????????????????????????????????????? | | ????????????????????????????????????????? | | ????????????????????????????????????????? | | ????????????????????????????????????????? | | ????????????????????????????????????????? | | ????????????????????????????????????????? | | ????????????###?????????????????????????? | | ???????????#"""#????????????????????????? | | ?####????##"|||"##??????????????????????? | | ?# ???#"" ""#??????????????????????? | | ?# ???# #??????????????????????? | | ?# ???# < #??????????????????????? | | ?# ???? #??????????????????????? | | ?# """# ???????????????????????? | | ?# = """#? ????????????????????????? | | ?# #?# #????????????????????????? | | ?# | """#?# #????????????????????????? | | ?# """#?# #?????????#??????????????? | | ?# """#?# #??????? #??????????????? | | ?# ### ##????? ##?????????????? | | ???###+#+## !##### #?????????????? | | ?????# % #?????????????? | | ?????# s #?????????????? | | ?????# g r @ #?????????????? | | ?#######+## ##### #?????????????? | | ?# #######????# ##?????????????? | | ?# % #??????????? #??????????????? | | ?# #???????????? #??????????????? | | ?# #???????????? #??????????????? | | ?# !!! #????????????? #??????????????? | | ?# !!! #?????????????? ??????????????? | | ?# ! ! ###### ????? ?????????????? | | ?# + ?????? ?????????????? | | ?# ###### ??????? ????????????? | | ?###+######?????????????????????????????? | | ???# #??????????????????????????????????? | | ???# #??????????????????????????????????? | | ???# #??????????????????????????????????? | | ???# #??????????????????????????????????? | | ???# #??????????????????????????????????? | | ???# #??????????????????????????????????? | | ???# #?????????????????????????#????????? | | ???# #?????????????????????????# ???????? | | ???# #??????????????????????#####+#####?? | | ???# #??????????????????????# #?? | | ???# #??????????????????????# ! #?? | | ???# #???##########?????????# !! ### | | ???# ##### ########### + | +----------------------------------------------------+ Best States ------------- Heat Dissipation 25 Energy Generation 10 Energy Capacity 250 Matter Stores 300 Matter Capacity 300 Sight Range 16 Terrain Scan Density 10 Evasion (%) 40 Recoil Reduction 1 Item Schematics ----------------- None Robot Schematics ------------------ None Fabricated ------------ Nothing Alien Tech Used ----------------- None Achievements -------------- None Challenges ------------ None Game ------ Seed NetworkSurgeNegator Manual? 0 Play Time 00:07:07 Cumulative 164.9 hours Start 2021.07.12 @ 19:31:33 End 2021.07.12 @ 19:35:20 Sessions 1 Manual Loads 0 Difficulty Rogue Special Mode None Game No. 125 Rogue 125 Adventurer 0 Explorer 0 Win Type - Total 6 Types 5/0/0/0/0/0/0/1/0 Lore% 81 Gallery% 68 Achievement% 55 Wizard Run 0 Options --------- ASCII 0 Keyboard 1 Movement Arrows Keybinds 0 Fullscreen 1 Font 18/SmallcapsGlow Map View 76x50 Tactical HUD 1 Map Filters NONE Filters NONE Steam 1 RUN: a7529a65-33e4-46d8-a500-9a4774e611df